[Event "98th Caplin Hastings Masters 2024-25"]
[Site "Hastings"]
[Date "2024.12.30"]
[Round "4.40"]
[White "Marusenko, Petr"]
[Black "Miller, Daniel"]
[Result "1-0"]
[ECO "B14"]
[WhiteElo "2021"]
[BlackElo "2093"]
[Annotator "NA"]
[PlyCount "133"]
[EventDate "2024.12.23"]
[EventType "swiss"]
[EventCountry "ENG"]
[SourceTitle "playchess.com"]
[Source "ChessBase"]
[SourceQuality "1"]
[TimeControl "5400+30"]

1. d4 {[%emt 0:08:54]} Nf6 {[%emt 0:00:06]} 2. c4 {[%emt 0:00:04]} g6 {[%emt 0:00:04]} 3. Nc3 {[%emt 0:00:04]} d5 {[%emt 0:00:03]} 4. Nf3 {[%emt 0:00:18]} Bg7 {[%emt 0:00:07]} 5. cxd5 {[%emt 0:00:07]} Nxd5 {[%emt 0:00:06]} 6. e3 {[%emt 0:00:07]} O-O {[%emt 0:00:30]} 7. Bc4 {[%emt 0:00:08]} Nb6 {[%emt 0:00:25]} 8. Bb3 {[%emt 0:00:04]} c5 {[%emt 0:00:32]} 9. h3 {[%emt 0:01:02]} cxd4 {[%emt 0:06:48]} 10. exd4 {[%emt 0:00:16]} Nc6 {[%emt 0:00:41]} 11. d5 {[%emt 0:00:07]} Na5 {[%emt 0:00:15]} 12. O-O {[%emt 0:01:40]} Bxc3 {[%emt 0:11:08]} 13. bxc3 {[%emt 0:01:46]} Nxb3 {[%emt 0:00:37]} 14. axb3 {[%emt 0:00:06]} Qxd5 {[%emt 0:00:25]} 15. c4 {[%emt 0:02:50]} Qxd1 {[%emt 0:05:38]} 16. Rxd1 {[%emt 0:00:10]} f6 {[%emt 0:06:12]} 17. Be3 {[%emt 0:03:57]} Bf5 {[%emt 0:05:43]} 18. Nd4 {[%emt 0:01:14]} Bd7 {[%emt 0:00:12]} 19. Ra5 {[%emt 0:11:12]} Nc8 {[%emt 0:40:24]} 20. Nc2 {[%emt 0:09:06]} Bf5 {[%emt 0:01:22]} 21. Nb4 {[%emt 0:00:08]} Nd6 {[%emt 0:01:56]} 22. Rxa7 {[%emt 0:01:29]} Rxa7 {[%emt 0:02:29]} 23. Bxa7 {[%emt 0:00:45]} b5 {[%emt 0:02:10]} 24. Nd5 {[%emt 0:02:38]} Kf7 {[%emt 0:00:15]} 25. Bc5 {[%emt 0:00:08]} bxc4 {[%emt 0:03:39]} 26. Nxe7 {[%emt 0:01:17]} Ne4 {[%emt 0:04:21]} 27. Nxf5 {[%emt 0:25:40]} Nxc5 {[%emt 0:00:20]} 28. Nd6+ {[%emt 0:00:40]} Ke6 {[%emt 0:00:23]} 29. Nxc4 {[%emt 0:00:55]} Nxb3 {[%emt 0:00:45]} 30. Rd6+ {[%emt 0:00:45]} Ke7 {[%emt 0:00:29]} 31. Rd5 {[%emt 0:00:11]} Ke6 {[%emt 0:01:23]} 32. Ne3 {[%emt 0:04:35]} Rc8 {[%emt 0:02:49]} 33. h4 {[%emt 0:04:04]} h5 {[%emt 0:00:41]} 34. g3 {[%emt 0:00:48]} Nc5 {[%emt 0:01:27]} 35. Rd4 {[%emt 0:01:17]} Nd7 {[%emt 0:00:37]} 36. Ra4 {[%emt 0:00:17]} Ne5 {[%emt 0:00:54]} 37. Ra6+ {[%emt 0:00:15]} Rc6 {[%emt 0:00:26]} 38. Ra2 {[%emt 0:00:10]} Kf7 {[%emt 0:00:13]} 39. Nd5 {[%emt 0:00:30]} Ke6 {[%emt 0:00:25]} 40. Nf4+ {[%emt 0:00:08]} Kf5 {[%emt 0:00:15]} 41. Kg2 {[%emt 0:00:17]} Rc3 {[%emt 0:00:24]} 42. Ra6 {[%emt 0:01:00]} Rc2 {[%emt 0:00:24]} 43. Nd5 {[%emt 0:00:10]} Ng4 {[%emt 0:00:17]} 44. Ne7+ {[%emt 0:00:35]} Ke4 {[%emt 0:00:31]} 45. Ra4+ {[%emt 0:00:07]} Kd3 {[%emt 0:00:23]} 46. Ra3+ {[%emt 0:00:17]} Ke4 {[%emt 0:01:06]} 47. Ra4+ {[%emt 0:02:57]} Kd3 {[%emt 0:00:08]} 48. Nxg6 {[%emt 0:00:27]} Rxf2+ {[%emt 0:00:33]} 49. Kg1 {[%emt 0:00:01]} Rf5 {[%emt 0:02:32]} 50. Nf4+ {[%emt 0:00:23]} Ke3 {[%emt 0:00:27]} 51. Nxh5 {[%emt 0:00:09]} Rxh5 {[%emt 0:00:16]} 52. Rxg4 {[%emt 0:00:07]} Kf3 {[%emt 0:00:35]} 53. Rg6 {[%emt 0:00:07]} Rf5 {[%emt 0:00:57]} 54. Kh2 {[%emt 0:00:14]} Kf2 {[%emt 0:00:35]} 55. Kh3 {[%emt 0:00:48]} Kf3 {[%emt 0:00:42]} 56. g4 {[%emt 0:02:03]} Rf4 {[%emt 0:00:15]} 57. g5 {[%emt 0:00:09]} fxg5 {[%emt 0:00:41]} 58. hxg5 {[%emt 0:00:21]} Rb4 {[%emt 0:00:52]} 59. Rf6+ {[%emt 0:00:39]} Ke4 {[%emt 0:00:03]} 60. Kg4 {[%emt 0:00:34]} Ke5+ {[%emt 0:00:08]} 61. Kh5 {[%emt 0:00:02]} Rb1 {[%emt 0:00:28]} 62. Kg6 {[%emt 0:00:31]} Rb7 {[%emt 0:00:47]} 63. Ra6 {[%emt 0:00:24]} Rc7 {[%emt 0:00:32]} 64. Kh6 {[%emt 0:00:20]} Rc1 {[%emt 0:00:41]} 65. g6 {[%emt 0:00:17]} Rh1+ {[%emt 0:00:04]} 66. Kg7 {[%emt 0:00:04]} Kf5 {[%emt 0:01:06]} 67. Kf7 {[%emt 0:00:12]} 1-0

[Event "98th Caplin Hastings Masters 2024-25"]
[Site "Hastings"]
[Date "2024.12.30"]
[Round "4.41"]
[White "Zhou, Yang-Fan"]
[Black "Schimnatkowski, Lukas"]
[Result "1-0"]
[ECO "C54"]
[WhiteElo "2424"]
[BlackElo "2221"]
[Annotator "RC"]
[PlyCount "81"]
[EventDate "2024.12.23"]
[EventType "swiss"]
[EventCountry "ENG"]
[SourceTitle "playchess.com"]
[Source "ChessBase"]
[SourceQuality "1"]
[TimeControl "5400+30"]

1. e4 {[%emt 0:00:01]} e5 {[%emt 0:00:08]} 2. Nf3 {[%emt 0:00:04]} Nc6 {[%emt 0:00:08]} 3. Bc4 {[%emt 0:00:05]} Bc5 {[%emt 0:00:17]} 4. d3 {[%emt 0:00:05]} Nf6 {[%emt 0:00:25]} 5. Bg5 {[%emt 0:00:10]} h6 {[%emt 0:02:50]} 6. Bh4 {[%emt 0:00:10]} d6 {[%emt 0:01:21]} 7. c3 {[%emt 0:00:59]} a6 {[%emt 0:02:25]} 8. Nbd2 {[%emt 0:00:06]} Ba7 {[%emt 0:05:20]} 9. a4 {[%emt 0:00:56]} g5 {[%emt 0:05:14]} 10. Bg3 {[%emt 0:00:22]} Qe7 {[%emt 0:00:45]} 11. O-O {[%emt 0:00:31]} Be6 {[%emt 0:04:52]} 12. b4 {[%emt 0:06:11]} Rd8 {[%emt 0:15:27]} 13. b5 {[%emt 0:07:23]} Na5 {[%emt 0:01:08]} 14. Bxe6 {[%emt 0:00:05]} Qxe6 {[%emt 0:02:10]} 15. d4 {[%emt 0:00:40]} Nd7 {[%emt 0:00:48]} 16. bxa6 {[%emt 0:06:07]} bxa6 {[%emt 0:00:32]} 17. Qe2 {[%emt 0:00:40]} f6 {[%emt 0:02:42]} 18. Qxa6 {[%emt 0:04:14]} Bb6 {[%emt 0:00:43]} 19. Kh1 {[%emt 0:06:28]} Ke7 {[%emt 0:07:26]} 20. Ne1 {[%emt 0:13:34]} h5 {[%emt 0:01:51]} 21. f3 {[%emt 0:01:08]} exd4 {[%emt 0:08:21]} 22. cxd4 {[%emt 0:00:02]} Bxd4 {[%emt 0:00:20]} 23. Rc1 {[%emt 0:00:16]} Ra8 {[%emt 0:02:13]} 24. Qe2 {[%emt 0:00:55]} c5 {[%emt 0:01:13]} 25. f4 {[%emt 0:04:40]} h4 {[%emt 0:05:17]} 26. Bf2 {[%emt 0:00:23]} Nc6 {[%emt 0:02:27]} 27. fxg5 {[%emt 0:07:13]} fxg5 {[%emt 0:00:18]} 28. Nef3 {[%emt 0:00:54]} Bf6 {[%emt 0:02:08]} 29. e5 {[%emt 0:00:44]} Ncxe5 {[%emt 0:01:43]} 30. Ne4 {[%emt 0:00:39]} h3 {[%emt 0:07:52]} 31. Bxc5 {[%emt 0:15:05]} hxg2+ {[%emt 0:07:05]} 32. Qxg2 {[%emt 0:01:18]} Nxf3 {[%emt 0:08:07]} 33. Qxf3 {[%emt 0:10:18]} Rxh2+ {[%emt 0:00:39]} 34. Kxh2 {[%emt 0:01:39]} Be5+ {[%emt 0:00:07]} 35. Kg2 {[%emt 0:01:34]} dxc5 {[%emt 0:00:10]} 36. Nxc5 {[%emt 0:03:10]} Nxc5 {[%emt 0:00:42]} 37. Rxc5 {[%emt 0:00:05]} Rd8 {[%emt 0:00:49]} 38. Re1 {[%emt 0:05:02]} Rd2+ {[%emt 0:02:14]} 39. Kf1 {[%emt 0:00:06]} Qa6+ {[%emt 0:00:25]} 40. Rb5 {[%emt 0:01:53]} Kd6 {[%emt 0:00:34]} 41. Rexe5 {[%emt 0:00:49]} 1-0

[Event "98th Caplin Hastings Masters 2024-25"]
[Site "Hastings"]
[Date "2024.12.30"]
[Round "4.43"]
[White "Ashton, Alannah"]
[Black "Swiatkowski, Dominik"]
[Result "1/2-1/2"]
[ECO "C97"]
[WhiteElo "1953"]
[BlackElo "1744"]
[Annotator "NA"]
[PlyCount "114"]
[EventDate "2024.12.23"]
[EventType "swiss"]
[EventCountry "ENG"]
[SourceTitle "playchess.com"]
[Source "ChessBase"]
[SourceQuality "1"]
[TimeControl "5400+30"]

1. e4 {[%emt 0:00:01]} e5 {[%emt 0:00:05]} 2. Nf3 {[%emt 0:00:03]} Nc6 {[%emt 0:00:03]} 3. Bb5 {[%emt 0:00:05]} a6 {[%emt 0:00:03]} 4. Ba4 {[%emt 0:00:04]} Nf6 {[%emt 0:00:03]} 5. O-O {[%emt 0:00:06]} Be7 {[%emt 0:00:03]} 6. Re1 {[%emt 0:00:07]} b5 {[%emt 0:00:02]} 7. Bb3 {[%emt 0:00:04]} d6 {[%emt 0:00:04]} 8. c3 {[%emt 0:00:05]} O-O {[%emt 0:00:04]} 9. h3 {[%emt 0:00:02]} Na5 {[%emt 0:00:04]} 10. Bc2 {[%emt 0:00:04]} c5 {[%emt 0:00:03]} 11. d4 {[%emt 0:00:04]} Qc7 {[%emt 0:00:02]} 12. d5 {[%emt 0:00:04]} Nc4 {[%emt 0:00:05]} 13. b3 {[%emt 0:00:12]} Nb6 {[%emt 0:00:03]} 14. Nbd2 {[%emt 0:01:07]} c4 {[%emt 0:11:16]} 15. bxc4 {[%emt 0:21:05]} Nxc4 {[%emt 0:00:31]} 16. Nxc4 {[%emt 0:01:15]} Qxc4 {[%emt 0:01:04]} 17. Ba3 {[%emt 0:09:23]} Re8 {[%emt 0:18:45]} 18. Qd2 {[%emt 0:01:27]} Nd7 {[%emt 0:05:05]} 19. Bd3 {[%emt 0:07:16]} Qc7 {[%emt 0:01:55]} 20. Rac1 {[%emt 0:02:52]} Nb6 {[%emt 0:07:43]} 21. c4 {[%emt 0:03:52]} bxc4 {[%emt 0:03:52]} 22. Bxc4 {[%emt 0:00:36]} Nxc4 {[%emt 0:01:45]} 23. Qb4 {[%emt 0:11:15]} Qa5 {[%emt 0:14:49]} 24. Rxc4 {[%emt 0:00:10]} Qxb4 {[%emt 0:00:06]} 25. Bxb4 {[%emt 0:00:09]} Bd7 {[%emt 0:00:27]} 26. Rc7 {[%emt 0:00:37]} Bb5 {[%emt 0:01:28]} 27. Nd2 {[%emt 0:36:16]} Rac8 {[%emt 0:23:15]} 28. Rec1 {[%emt 0:00:10]} Rxc7 {[%emt 0:00:13]} 29. Rxc7 {[%emt 0:00:04]} Bf8 {[%emt 0:01:20]} 30. g3 {[%emt 0:01:46]} Rb8 {[%emt 0:01:35]} 31. a3 {[%emt 0:00:13]} g6 {[%emt 0:01:00]} 32. f4 {[%emt 0:00:52]} exf4 {[%emt 0:06:50]} 33. gxf4 {[%emt 0:00:04]} Re8 {[%emt 0:00:34]} 34. e5 {[%emt 0:04:25]} dxe5 {[%emt 0:00:16]} 35. d6 {[%emt 0:00:38]} a5 {[%emt 0:02:42]} 36. d7 {[%emt 0:00:26]} Bxd7 {[%emt 0:00:39]} 37. Bxf8 {[%emt 0:00:04]} Kxf8 {[%emt 0:00:22]} 38. Rxd7 {[%emt 0:00:03]} exf4 {[%emt 0:00:13]} 39. Rd5 {[%emt 0:01:05]} Re2 {[%emt 0:00:53]} 40. h4 {[%emt 0:00:42]} f3 {[%emt 0:00:29]} 41. Nxf3 {[%emt 0:01:10]} Re3 {[%emt 0:00:03]} 42. Ng5 {[%emt 0:00:12]} h6 {[%emt 0:00:43]} 43. Rxa5 {[%emt 0:00:09]} hxg5 {[%emt 0:00:03]} 44. hxg5 {[%emt 0:00:05]} Re2 {[%emt 0:00:46]} 45. Ra8+ {[%emt 0:00:53]} Kg7 {[%emt 0:00:09]} 46. Ra5 {[%emt 0:00:20]} Re6 {[%emt 0:00:49]} 47. Kf2 {[%emt 0:00:22]} f6 {[%emt 0:00:12]} 48. Ra7+ {[%emt 0:00:07]} Kf8 {[%emt 0:00:10]} 49. gxf6 {[%emt 0:00:18]} Rxf6+ {[%emt 0:00:09]} 50. Kg3 {[%emt 0:00:08]} Ke8 {[%emt 0:00:20]} 51. a4 {[%emt 0:00:34]} Kd8 {[%emt 0:00:10]} 52. Rb7 {[%emt 0:00:49]} Ra6 {[%emt 0:00:24]} 53. Rb4 {[%emt 0:00:03]} Kc7 {[%emt 0:00:14]} 54. Rg4 {[%emt 0:00:19]} Ra5 {[%emt 0:00:13]} 55. Kf3 {[%emt 0:00:10]} g5 {[%emt 0:00:08]} 56. Ke3 {[%emt 0:00:13]} Kb6 {[%emt 0:00:16]} 57. Kd3 {[%emt 0:00:11]} Rf5 {[%emt 0:00:24]} 1/2-1/2

[Event "98th Caplin Hastings Masters 2024-25"]
[Site "Hastings"]
[Date "2024.12.30"]
[Round "4.44"]
[White "Dewangan, Aayush"]
[Black "Norinkeviciute, Rasa"]
[Result "1-0"]
[ECO "B90"]
[WhiteElo "1878"]
[BlackElo "1952"]
[Annotator "NA"]
[PlyCount "109"]
[EventDate "2024.12.23"]
[EventType "swiss"]
[EventCountry "ENG"]
[SourceTitle "playchess.com"]
[Source "ChessBase"]
[SourceQuality "1"]
[TimeControl "5400+30"]

1. e4 {[%emt 0:00:06]} c5 {[%emt 0:01:00]} 2. Nf3 {[%emt 0:00:22]} d6 {[%emt 0:00:04]} 3. d4 {[%emt 0:00:07]} cxd4 {[%emt 0:00:05]} 4. Nxd4 {[%emt 0:00:06]} Nf6 {[%emt 0:00:05]} 5. Nc3 {[%emt 0:00:05]} a6 {[%emt 0:00:03]} 6. Be3 {[%emt 0:00:05]} e5 {[%emt 0:01:41]} 7. Nb3 {[%emt 0:00:16]} Be6 {[%emt 0:01:08]} 8. h3 {[%emt 0:00:52]} Be7 {[%emt 0:03:36]} 9. f4 {[%emt 0:00:22]} exf4 {[%emt 0:06:17]} 10. Bxf4 {[%emt 0:00:05]} Nc6 {[%emt 0:01:55]} 11. Qe2 {[%emt 0:05:54]} Qc7 {[%emt 0:08:55]} 12. O-O-O {[%emt 0:02:18]} Ne5 {[%emt 0:03:43]} 13. Kb1 {[%emt 0:06:41]} Rc8 {[%emt 0:02:52]} 14. g4 {[%emt 0:13:27]} O-O {[%emt 0:05:32]} 15. g5 {[%emt 0:10:20]} Nfd7 {[%emt 0:00:56]} 16. Nd5 {[%emt 0:03:03]} Qd8 {[%emt 0:11:01]} 17. Nxe7+ {[%emt 0:09:32]} Qxe7 {[%emt 0:00:12]} 18. Qd2 {[%emt 0:01:40]} Bxb3 {[%emt 0:06:55]} 19. axb3 {[%emt 0:00:20]} Rc6 {[%emt 0:00:11]} 20. Be2 {[%emt 0:13:35]} Nc5 {[%emt 0:04:35]} 21. Qd5 {[%emt 0:02:53]} Qc7 {[%emt 0:05:56]} 22. Rhf1 {[%emt 0:11:01]} Ne6 {[%emt 0:01:45]} 23. Qd2 {[%emt 0:06:52]} Nxf4 {[%emt 0:10:22]} 24. Rxf4 {[%emt 0:00:11]} b5 {[%emt 0:01:13]} 25. h4 {[%emt 0:02:07]} Rc8 {[%emt 0:06:40]} 26. Rc1 {[%emt 0:01:37]} Qe7 {[%emt 0:01:03]} 27. Rf2 {[%emt 0:01:35]} Qe6 {[%emt 0:06:09]} 28. h5 {[%emt 0:00:49]} Nd7 {[%emt 0:03:05]} 29. Qf4 {[%emt 0:02:24]} Ne5 {[%emt 0:00:59]} 30. Bf1 {[%emt 0:01:14]} Rc5 {[%emt 0:02:45]} 31. Rh2 {[%emt 0:01:08]} Rf8 {[%emt 0:02:49]} 32. Bh3 {[%emt 0:00:12]} Qe7 {[%emt 0:00:12]} 33. Rf1 {[%emt 0:01:29]} Nc6 {[%emt 0:01:51]} 34. g6 {[%emt 0:00:27]} Rxh5 {[%emt 0:01:10]} 35. gxh7+ {[%emt 0:01:29]} Kh8 {[%emt 0:00:38]} 36. Rg1 {[%emt 0:01:44]} Qe5 {[%emt 0:00:28]} 37. Qg4 {[%emt 0:00:33]} Rh6 {[%emt 0:00:23]} 38. Rf2 {[%emt 0:00:41]} Ne7 {[%emt 0:00:28]} 39. Qd7 {[%emt 0:00:58]} Rf6 {[%emt 0:00:45]} 40. Rfg2 {[%emt 0:00:33]} Rg6 {[%emt 0:00:17]} 41. Rd1 {[%emt 0:00:53]} Qxe4 {[%emt 0:00:38]} 42. Rxg6 {[%emt 0:00:15]} Nxg6 {[%emt 0:00:19]} 43. Bf5 {[%emt 0:00:39]} Qe7 {[%emt 0:00:46]} 44. Qxd6 {[%emt 0:00:37]} Qxd6 {[%emt 0:00:13]} 45. Rxd6 {[%emt 0:00:01]} Kxh7 {[%emt 0:00:48]} 46. Rxa6 {[%emt 0:00:01]} Rb8 {[%emt 0:00:10]} 47. c4 {[%emt 0:00:18]} f6 {[%emt 0:00:35]} 48. c5 {[%emt 0:00:49]} Kh6 {[%emt 0:00:07]} 49. c6 {[%emt 0:01:02]} Ne7 {[%emt 0:00:16]} 50. c7 {[%emt 0:00:06]} Rf8 {[%emt 0:01:22]} 51. Rd6 {[%emt 0:01:03]} g6 {[%emt 0:00:30]} 52. Rd8 {[%emt 0:00:26]} Rf7 {[%emt 0:00:20]} 53. Be6 {[%emt 0:00:30]} Rg7 {[%emt 0:00:38]} 54. Rd7 {[%emt 0:00:26]} g5 {[%emt 0:00:32]} 55. Rxe7 {[%emt 0:00:16]} 1-0

[Event "98th Caplin Hastings Masters 2024-25"]
[Site "Hastings"]
[Date "2024.12.30"]
[Round "4.45"]
[White "Wilson, Matthew R"]
[Black "Prudent, Sylvio"]
[Result "0-1"]
[ECO "B09"]
[WhiteElo "1766"]
[BlackElo "1780"]
[Annotator "NA RC"]
[PlyCount "80"]
[EventDate "2024.12.23"]
[EventType "swiss"]
[EventCountry "ENG"]
[SourceTitle "playchess.com"]
[Source "ChessBase"]
[SourceQuality "1"]
[TimeControl "5400+30"]

1. e4 {[%emt 0:00:03]} d6 {[%emt 0:00:07]} 2. Nc3 {[%emt 0:00:05]} Nf6 {[%emt 0:00:08]} 3. f4 {[%emt 0:00:29]} g6 {[%emt 0:00:08]} 4. Bc4 {[%emt 0:00:44]} Bg7 {[%emt 0:00:23]} 5. Nf3 {[%emt 0:00:17]} Nxe4 {[%emt 0:02:38]} 6. Bxf7+ {[%emt 0:00:31]} Kxf7 {[%emt 0:00:07]} 7. Nxe4 {[%emt 0:00:04]} Rf8 {[%emt 0:00:18]} 8. O-O {[%emt 0:02:07]} Kg8 {[%emt 0:00:10]} 9. d4 {[%emt 0:01:57]} Bf5 {[%emt 0:08:03]} 10. Ng3 {[%emt 0:01:23]} Bg4 {[%emt 0:00:23]} 11. c3 {[%emt 0:00:24]} Qc8 {[%emt 0:08:45]} 12. d5 {[%emt 0:09:06]} e5 {[%emt 0:15:40]} 13. dxe6 {[%emt 0:03:08]} Qxe6 {[%emt 0:01:21]} 14. Qd3 {[%emt 0:13:46]} Nc6 {[%emt 0:02:17]} 15. Bd2 {[%emt 0:05:27]} Rae8 {[%emt 0:12:23]} 16. h3 {[%emt 0:06:35]} Bxf3 {[%emt 0:11:09]} 17. Rxf3 {[%emt 0:00:48]} Qd7 {[%emt 0:10:25]} 18. Kh2 {[%emt 0:04:02]} Ne7 {[%emt 0:02:08]} 19. Re1 {[%emt 0:07:55]} d5 {[%emt 0:01:14]} 20. f5 {[%emt 0:02:52]} c6 {[%emt 0:05:59]} 21. fxg6 {[%emt 0:10:51]} Nxg6 {[%emt 0:03:40]} 22. Rxf8+ {[%emt 0:07:34]} Rxf8 {[%emt 0:00:26]} 23. Kg1 {[%emt 0:08:18]} Be5 {[%emt 0:01:58]} 24. Ne2 {[%emt 0:01:34]} Bc7 {[%emt 0:01:23]} 25. Rf1 {[%emt 0:04:16]} Bh2+ {[%emt 0:00:48]} 26. Kxh2 {[%emt 0:00:06]} Rxf1 {[%emt 0:00:06]} 27. Ng3 {[%emt 0:02:37]} Rf7 {[%emt 0:00:44]} 28. Nh5 {[%emt 0:00:41]} Qf5 {[%emt 0:02:55]} 29. Qe2 {[%emt 0:00:06]} Re7 {[%emt 0:02:23]} 30. Qd1 {[%emt 0:01:12]} Qe5+ {[%emt 0:01:11]} 31. Ng3 {[%emt 0:00:30]} h5 {[%emt 0:01:25]} 32. Qc2 {[%emt 0:00:55]} Re6 {[%emt 0:00:31]} 33. Qf5 {[%emt 0:01:55]} Qxf5 {[%emt 0:01:19]} 34. Nxf5 {[%emt 0:00:01]} Re2 {[%emt 0:00:23]} 35. Be3 {[%emt 0:00:56]} Rxb2 {[%emt 0:00:23]} 36. Nd6 {[%emt 0:00:37]} Nh4 {[%emt 0:00:44]} 37. Bxa7 {[%emt 0:00:46]} Rxg2+ {[%emt 0:00:18]} 38. Kh1 {[%emt 0:00:06]} Rxa2 {[%emt 0:00:13]} 39. Bd4 {[%emt 0:00:18]} Nf3 {[%emt 0:00:13]} 40. Bg1 {[%emt 0:01:48]} Ra1 {[%emt 0:00:18]} 0-1

[Event "98th Caplin Hastings Masters 2024-25"]
[Site "Hastings"]
[Date "2024.12.30"]
[Round "4.46"]
[White "Butt, Laurence"]
[Black "Jukes, Sam"]
[Result "0-1"]
[ECO "A45"]
[WhiteElo "1818"]
[BlackElo "1911"]
[Annotator "NA RC"]
[PlyCount "74"]
[EventDate "2024.12.23"]
[EventType "swiss"]
[EventCountry "ENG"]
[SourceTitle "playchess.com"]
[Source "ChessBase"]
[SourceQuality "1"]
[TimeControl "5400+30"]

1. d4 {[%emt 0:00:04]} Nf6 {[%emt 0:00:07]} 2. Bg5 {[%emt 0:00:05]} c5 {[%emt 0:00:28]} 3. d5 {[%emt 0:00:10]} Ne4 {[%emt 0:00:41]} 4. Bc1 {[%emt 0:01:12]} Qa5+ {[%emt 0:02:15]} 5. c3 {[%emt 0:00:18]} d6 {[%emt 0:04:29]} 6. f3 {[%emt 0:00:25]} Nf6 {[%emt 0:00:09]} 7. e4 {[%emt 0:00:08]} g6 {[%emt 0:00:30]} 8. Na3 {[%emt 0:00:34]} Bg7 {[%emt 0:01:14]} 9. Nc4 {[%emt 0:00:13]} Qc7 {[%emt 0:02:14]} 10. a4 {[%emt 0:00:11]} O-O {[%emt 0:01:04]} 11. Be3 {[%emt 0:01:46]} Nbd7 {[%emt 0:03:13]} 12. Qd2 {[%emt 0:04:38]} Nb6 {[%emt 0:00:57]} 13. Nh3 {[%emt 0:00:49]} Nxc4 {[%emt 0:01:42]} 14. Bxc4 {[%emt 0:00:08]} Bxh3 {[%emt 0:02:48]} 15. gxh3 {[%emt 0:00:10]} Qd7 {[%emt 0:02:15]} 16. Qg2 {[%emt 0:00:28]} e6 {[%emt 0:02:44]} 17. dxe6 {[%emt 0:05:09]} fxe6 {[%emt 0:01:14]} 18. O-O {[%emt 0:00:07]} d5 {[%emt 0:02:25]} 19. Rfd1 {[%emt 0:01:38]} Qc6 {[%emt 0:00:28]} 20. Bb5 {[%emt 0:00:34]} Qc7 {[%emt 0:00:21]} 21. Bf2 {[%emt 0:06:07]} Nh5 {[%emt 0:04:42]} 22. Bg3 {[%emt 0:06:08]} Nxg3 {[%emt 0:01:59]} 23. hxg3 {[%emt 0:00:02]} c4 {[%emt 0:00:46]} 24. a5 {[%emt 0:02:19]} Qc5+ {[%emt 0:00:09]} 25. Kh2 {[%emt 0:00:19]} Qxb5 {[%emt 0:00:01]} 26. exd5 {[%emt 0:00:04]} exd5 {[%emt 0:00:17]} 27. f4 {[%emt 1:10:14]} Rad8 {[%emt 0:00:25]} 28. Rd2 {[%emt 0:00:00]} d4 {[%emt 0:00:56]} 29. Rad1 {[%emt 0:00:00]} d3 {[%emt 0:00:27]} 30. Ra1 {[%emt 0:00:00]} a6 {[%emt 0:00:32]} 31. h4 {[%emt 0:00:00]} Rfe8 {[%emt 0:00:25]} 32. Rf1 {[%emt 0:00:00]} Re3 {[%emt 0:01:17]} 33. g4 {[%emt 0:00:00]} Rde8 {[%emt 0:00:30]} 34. Rff2 {[%emt 0:00:00]} R8e7 {[%emt 0:01:33]} 35. f5 {[%emt 0:00:00]} Qe5+ {[%emt 0:01:28]} 36. Kh1 {[%emt 0:00:00]} Rg3 {[%emt 0:01:03]} 37. Qf1 {[%emt 0:00:00]} Qd5+ {[%emt 0:02:43]} 0-1

[Event "98th Caplin Hastings Masters 2024-25"]
[Site "Hastings"]
[Date "2024.12.30"]
[Round "4.47"]
[White "Choi, Hyunbin"]
[Black "Vaidyanathan, Sathya"]
[Result "0-1"]
[ECO "C50"]
[WhiteElo "1673"]
[BlackElo "1908"]
[Annotator "RC"]
[PlyCount "105"]
[EventDate "2024.12.23"]
[EventType "swiss"]
[EventCountry "ENG"]
[SourceTitle "playchess.com"]
[Source "ChessBase"]
[SourceQuality "1"]
[TimeControl "5400+30"]

1. e4 {[%emt 0:00:06]} e5 {[%emt 0:00:03]} 2. Nf3 {[%emt 0:00:08]} Nc6 {[%emt 0:00:03]} 3. Bc4 {[%emt 0:00:05]} Bc5 {[%emt 0:00:05]} 4. d3 {[%emt 0:02:41]} Nf6 {[%emt 0:00:08]} 5. O-O {[%emt 0:00:09]} d6 {[%emt 0:00:06]} 6. Bg5 {[%emt 0:00:21]} O-O {[%emt 0:00:25]} 7. h3 {[%emt 0:01:11]} h6 {[%emt 0:00:28]} 8. Bh4 {[%emt 1:29:49]} Be6 {[%emt 0:00:15]} 9. Nbd2 {[%emt 0:00:00]} a6 {[%emt 0:02:20]} 10. c3 {[%emt 0:00:00]} b5 {[%emt 0:05:38]} 11. Bb3 {[%emt 0:00:00]} g5 {[%emt 0:12:37]} 12. Bg3 {[%emt 0:00:00]} Bxb3 {[%emt 0:07:16]} 13. Nxb3 {[%emt 0:00:00]} Bb6 {[%emt 0:00:18]} 14. Re1 {[%emt 0:00:00]} Re8 {[%emt 0:04:12]} 15. Qc2 {[%emt 0:00:00]} Nh5 {[%emt 0:11:47]} 16. Bh2 {[%emt 0:00:00]} Qf6 {[%emt 0:01:19]} 17. Rad1 {[%emt 0:00:00]} Nf4 {[%emt 0:01:49]} 18. Bxf4 {[%emt 0:00:00]} Qxf4 {[%emt 0:02:02]} 19. Nc1 {[%emt 0:00:00]} Rad8 {[%emt 0:02:49]} 20. Ne2 {[%emt 0:00:00]} Qf6 {[%emt 0:00:28]} 21. Ng3 {[%emt 0:00:00]} Ne7 {[%emt 0:01:46]} 22. d4 {[%emt 0:00:00]} Ng6 {[%emt 0:04:15]} 23. Nh5 {[%emt 0:00:00]} Qe7 {[%emt 0:01:08]} 24. Nh2 {[%emt 0:00:00]} Nf4 {[%emt 0:02:01]} 25. Ng4 {[%emt 0:00:00]} Nxh5 {[%emt 0:01:56]} 26. Nxh6+ {[%emt 0:00:00]} Kh7 {[%emt 0:01:34]} 27. Nf5 {[%emt 0:00:00]} Qf6 {[%emt 0:01:29]} 28. Qe2 {[%emt 0:00:00]} Ng7 {[%emt 0:02:01]} 29. Ne3 {[%emt 0:00:00]} exd4 {[%emt 0:05:22]} 30. Nd5 {[%emt 0:00:00]} Qg6 {[%emt 0:04:19]} 31. cxd4 {[%emt 0:00:00]} Ba5 {[%emt 0:02:11]} 32. Rf1 {[%emt 0:00:00]} c6 {[%emt 0:00:34]} 33. Ne3 {[%emt 0:00:00]} Qxe4 {[%emt 0:01:56]} 34. Rc1 {[%emt 0:00:00]} Bb6 {[%emt 0:01:55]} 35. Qd2 {[%emt 0:00:00]} Qxd4 {[%emt 0:01:31]} 36. Qc2+ {[%emt 0:00:00]} Qe4 {[%emt 0:00:29]} 37. Qxc6 {[%emt 0:00:00]} Qxc6 {[%emt 0:00:25]} 38. Rxc6 {[%emt 0:00:00]} Bxe3 {[%emt 0:00:07]} 39. fxe3 {[%emt 0:00:00]} Kg6 {[%emt 0:01:20]} 40. Rxa6 {[%emt 0:00:00]} Rxe3 {[%emt 0:00:31]} 41. Ra7 {[%emt 0:00:00]} Nf5 {[%emt 0:02:52]} 42. g4 {[%emt 0:00:00]} Nh6 {[%emt 0:00:42]} 43. Rb7 {[%emt 0:00:00]} Rxh3 {[%emt 0:01:25]} 44. Rxb5 {[%emt 0:00:00]} Rg3+ {[%emt 0:00:08]} 45. Kf2 {[%emt 0:00:00]} Rxg4 {[%emt 0:00:09]} 46. Ke2 {[%emt 0:00:00]} Rf4 {[%emt 0:01:39]} 47. Ra1 {[%emt 0:00:00]} g4 {[%emt 0:00:14]} 48. a4 {[%emt 0:00:00]} Nf5 {[%emt 0:00:23]} 49. Kd3 {[%emt 0:00:00]} g3 {[%emt 0:00:57]} 50. a5 {[%emt 0:00:00]} g2 {[%emt 0:00:09]} 51. Rg1 {[%emt 0:00:00]} Nh4 {[%emt 0:00:20]} 52. Ke3 {[%emt 0:00:00]} Rf1 {[%emt 0:00:06]} 53. Kd4 {[%emt 0:00:00]} 0-1